Cogmind - Beta 12 @@@ ROGUE MODE // 2023.04.01 @ 19:57:38 Player: Inkie Result: Destroyed by Y-45 Defender with Heavy Assault Rifle Performance ------------- Evolutions (2) 1000 Regions Visited (10) 2000 Robots Destroyed (76) 380 Value Destroyed (3258) 3258 Prototype IDs (27) 540 Alien Tech Used (0) 0 Bonus (2499) 2499 TOTAL SCORE: 9677 Bonus ------- Pacifist 200 High Alert Combat Kills 179 Follower Combat Kills 645 Entered Garrisons 400 Used RIF Installer 1000 Aligned with FarCom 300 Friendly Fire -225 Cogmind --------- Core Integrity 0/550 Matter 300/300 Energy 290/290 System Corruption 0% Temperature Cool (6) Movement Treading (325) Ox2 Location -8/Garrison Parts ------- > --- POWER (1) -------- Improved Deuterium Engine > --- PROPULSION (2) --- Armored Treads Medium Treads > --- UTILITY (6) ------ Huge Storage Unit Light Armor Plating Hardlight Generator Hacking Suite Hacking Suite Relay Coupler [Grunt] (27) > --- WEAPON (2) ------- Improved Datajack Heavy Hammer > --- INVENTORY (25) --- Advanced Treads Medium Treads Armored Wheel Improved Cooling System Humpback Humpback High-capacity Matter Pod (200) Kinecellerator Light Armor Plating Relay Coupler [NC] (27) Relay Coupler [Grunt] (21) Relay Coupler [Grunt] (23) Relay Coupler [Duelist] (25) Relay Coupler [Sentry] (19) Relay Coupler [Hunter] (13) Relay Coupler [Behemoth] (9) Trap Extractor (0/4) Heavy Assault Rifle XL Autogun Array Plasma Cutter Peak State ------------ > --- POWER ------------ Improved Deuterium Engine > --- PROPULSION ------- Armored Treads Medium Treads > --- UTILITY ---------- Huge Storage Unit Advanced Terrain Scan Processor Hacking Suite Hacking Suite Relay Coupler [Grunt] Relay Coupler [Sentry] > --- WEAPON ----------- Improved Datajack Heavy Hammer > --- INVENTORY -------- Advanced Treads Medium Treads Armored Wheel Improved Cooling System Improved Cooling System Humpback Humpback Large Matter Pod Kinecellerator Light Armor Plating Reactive Plating Hardlight Generator Relay Coupler [Grunt] Relay Coupler [Grunt] Relay Coupler [Duelist] Trap Extractor XL Autogun Array Plasma Cutter [Rating: 42] Favorites ----------- Power Improved Deuterium Engine Engine Improved Deuterium Engine Power Core Nuclear Core Propulsion Light Treads Treads Light Treads Wheel Armored Wheel Utility Hacking Suite Device Disposable Heat Sink Storage Huge Storage Unit Processor Advanced Terrain Scan Processor Hackware Hacking Suite Protection Light Armor Plating Weapon Ion Cannon Energy Gun Medium Laser Energy Cannon Ion Cannon Launcher Mini Grenade Launcher Impact Weapon Heavy Hammer Special Melee Weapon Improved Datajack Build | -11 -10 -10 -9 -9 -9 -8 -8 -8 -8 -8 ------- Run | Jun Mat Min Mat Min Exi Min Mat Gar Mat Gar Slots Evolved 4 | . . . 2 . . . 2 . . . Power . | . . . . . . . . . . . Propulsion . | . . . . . . . . . . . Utility 4 | . . . 2 . . . 2 . . . Weapon . | . . . . . . . . . . . Parts Attached 67 | 6 1 . 25 . . . 22 10 1 2 Power 9 | 1 . . 5 . . . 2 1 . . Engine 7 | 1 . . 3 . . . 2 1 . . Core 2 | . . . 2 . . . . . . . Reactor . | . . . . . . . . . . . Propulsion 16 | 2 . . 7 . . . 5 2 . . Treads 12 | 2 . . 4 . . . 4 2 . . Leg . | . . . . . . . . . . . Wheel 4 | . . . 3 . . . 1 . . . Hover . | . . . . . . . . . . . Flight . | . . . . . . . . . . . Utility 24 | 1 1 . 6 . . . 10 3 1 2 Device 10 | . . . 4 . . . 5 . 1 . Storage 3 | 1 1 . . . . . 1 . . . Processor 1 | . . . . . . . 1 . . . Hackware 5 | . . . 1 . . . 1 2 . 1 Protection 5 | . . . 1 . . . 2 1 . 1 Artifact . | . . . . . . . . . . . Weapon 18 | 2 . . 7 . . . 5 4 . . Energy Gun 3 | 2 . . 1 . . . . . . . Energy Cannon 8 | . . . 5 . . . 3 . . . Ballistic Gun . | . . . . . . . . . . . Ballistic Cannon . | . . . . . . . . . . . Launcher 3 | . . . . . . . 1 2 . . Special Weapon . | . . . . . . . . . . . Impact Weapon 3 | . . . 1 . . . 1 1 . . Slashing Weapon . | . . . . . . . . . . . Piercing Weapon . | . . . . . . . . . . . Special Melee Weapon 1 | . . . . . . . . 1 . . Unidentified Prototypes . | . . . . . . . . . . . Parts Lost 15 | . . . 4 . . . 3 8 . . Power 3 | . . . 1 . . . 1 1 . . Propulsion 4 | . . . 2 . . . . 2 . . Utility 3 | . . . . . . . 1 2 . . Weapon 5 | . . . 1 . . . 1 3 . . Highest Loss Streak 7 | . . . 2 . . . 1 7 . . To Critical Strikes . | . . . . . . . . . . . Average Slot Usage (%) 93 | . 85 85 85 100 100 100 97 95 100 100 Engine 8 | . 14 14 10 . . . 8 8 9 9 Core 1 | . . . . 11 11 11 . . . . Treads 16 | . 28 28 16 11 11 11 9 17 18 18 Wheel 4 | . . . 5 11 11 11 8 . . . Device 10 | . . . 11 11 11 11 17 5 . 9 Storage 10 | . 14 14 11 11 11 11 10 9 9 9 Processor 4 | . . . . . . . 8 9 9 1 Hackware 11 | . . . 3 11 11 11 9 25 36 27 Protection 4 | . . . 4 11 11 11 7 1 . 7 Energy Gun 5 | . 28 28 10 . . . . . . . Energy Cannon 9 | . . . 11 22 22 22 15 3 . . Impact Weapon 2 | . . . . . . . 2 5 9 9 Special Melee Weapon 1 | . . . . . . . . 5 9 9 Naked Turns . | . . . . . . . . . . . Heaviest Build 301 | 13 88 88 104 103 103 103 301 104 99 102 Greatest Support 51 | 40 40 40 40 16 16 16 51 50 48 48 Greatest Overweight (x) 25 | . 2 2 10 6 6 6 25 2 2 2 Average Overweight (x) 4 | . . 2 4 6 6 6 9 1 1 2 Largest Inventory Capacity 35 | 8 25 25 25 25 25 25 35 25 25 25 Average Capacity 24 | 6 13 25 25 25 25 25 26 25 25 25 Most Carried 27 | 2 4 8 25 25 25 25 27 25 25 25 Average Carried 20 | . 3 4 19 25 24 25 25 23 24 24 Final Capacity 25 | 8 25 25 25 25 25 25 25 25 25 25 Final Carried 25 | 2 4 8 25 25 25 25 25 25 24 25 Class Distribution -------------------- 47% | Mutant 11% | Bothacker-Mutant 11% | Skirmisher 10% | Hacker-Mutant 7% | Commander-Mutant 7% | Assassin 3% | Hauler-Mutant Dominant Class ---------------- Mutant | -10/Materials Mutant | -10/Mines Mutant | -9/Materials Mutant | -9/Mines Mutant | -9/Exiles Mutant | -8/Mines Skirmisher | -8/Materials Hacker-Mutant | -8/Garrison Bothacker-Mutant | -8/Materials Bothacker-Mutant | -8/Garrison Resources | -11 -10 -10 -9 -9 -9 -8 -8 -8 -8 -8 ----------- Run | Jun Mat Min Mat Min Exi Min Mat Gar Mat Gar Matter Collected 1175 | 186 . 84 220 . 36 . 252 367 . 30 Remotely . | . . . . . . . . . . . Salvage Created 2694 | . . . 1376 . . . 880 438 . . Parts 134 | . . . 71 . . . 35 28 . . Haulers Intercepted 1 | . . . 1 . . . . . . . Recyclers Shooed 2 | . . . 2 . . . . . . . Parts Field Recycled . | . . . . . . . . . . . Retrieved Matter . | . . . . . . . . . . . Parts Self-Destructed . | . . . . . . . . . . . Prevented . | . . . . . . . . . . . Kills | -11 -10 -10 -9 -9 -9 -8 -8 -8 -8 -8 ------- Run | Jun Mat Min Mat Min Exi Min Mat Gar Mat Gar Combat Hostiles Destroyed 63 | . . . 27 . . . 16 20 . . Melee 2 | . . . . . . . 1 1 . . Guns 9 | . . . 9 . . . . . . . Cannons 29 | . . . 17 . . . 10 2 . . AOE 18 | . . . . . . . 3 15 . . Classes Destroyed 12 | . . . 8 . . . 3 1 . . Worker 2 | . . . 1 . . . 1 . . . Builder 1 | . . . . . . . 1 . . . Hauler 1 | . . . 1 . . . . . . . Recycler 3 | . . . 1 . . . 2 . . . Operator 3 | . . . 2 . . . 1 . . . Watcher 2 | . . . 1 . . . 1 . . . Swarmer 9 | . . . 4 . . . . 5 . . Grunt 36 | . . . 16 . . . 11 9 . . Brawler 3 | . . . . . . . 1 2 . . Sentry 13 | . . . 7 . . . 3 3 . . Specialist 1 | . . . . . . . . 1 . . Hunter 2 | . . . . . . . 1 1 . . Best Kill Streak 6 | . . . 4 . . . 6 4 . . Combat Bots Only 4 | . . . 4 . . . 3 4 . . Max Kills in Single Turn 2 | . . . 2 . . . 2 2 . . Gunslinging . | . . . . . . . . . . . Exploded 2 | . . . . . . . 1 2 . . Melee 1 | . . . . . . . 1 1 . . Uniques/NPCs Destroyed . | . . . . . . . . . . . Combat | -11 -10 -10 -9 -9 -9 -8 -8 -8 -8 -8 -------- Run | Jun Mat Min Mat Min Exi Min Mat Gar Mat Gar Damage Taken 3869 | . . . 1338 . . . 912 1574 13 32 Core 877 | . . . 325 . . . 148 377 13 14 Absorbed by Shields 24 | . . . . . . . . 4 . 20 Regen/Repaired (Parts) 223 | . . . 144 . . . 79 . . . Core Remaining (%) 72 | 100 . 100 . . . 18 . . . . Volleys Fired 173 | . . . 77 . . . 41 55 . . Largest 2 | . . . 2 . . . 2 2 . . Hottest 128 | . . . 120 . . . 128 98 . . Shots Fired 278 | . . . 146 . . . 75 57 . . Gun 67 | . . . 67 . . . . . . . Cannon 176 | . . . 79 . . . 69 28 . . Launcher 35 | . . . . . . . 6 29 . . Special . | . . . . . . . . . . . Kinetic . | . . . . . . . . . . . Thermal 243 | . . . 146 . . . 69 28 . . Explosive 35 | . . . . . . . 6 29 . . Electromagnetic . | . . . . . . . . . . . Robot Hit Streak 15 | . . . 11 . . . 15 11 . . Robot Miss Streak 4 | . . . 4 . . . 1 1 . . Penetration Max . | . . . . . . . . . . . Secondary Targets . | . . . . . . . . . . . Shots Hit Robots 198 | . . . 93 . . . 51 54 . . Core Hits 113 | . . . 43 . . . 33 37 . . Critical Kills . | . . . . . . . . . . . Critical Parts Destroyed 5 | . . . . . . . 2 3 . . Critical Strikes 10 | . . . 5 . . . 2 3 . . Burn 5 | . . . 5 . . . . . . . Smash 5 | . . . . . . . 2 3 . . Melee Attacks 47 | . . . 2 . . . 10 35 . . Impact 22 | . . . 2 . . . 10 10 . . Slashing . | . . . . . . . . . . . Piercing . | . . . . . . . . . . . Sneak Attacks 20 | . . . . . . . . 20 . . Combat Hostiles . | . . . . . . . . . . . Follow-up Attacks . | . . . . . . . . . . . Damage Inflicted 5475 | . . . 1747 . . . 1614 2114 . . Guns 624 | . . . 624 . . . . . . . Cannons 2083 | . . . 1123 . . . 860 100 . . Explosions 2269 | . . . . . . . 473 1796 . . Melee 496 | . . . . . . . 278 218 . . Ramming 3 | . . . . . . . 3 . . . Kinetic . | . . . . . . . . . . . Thermal 2856 | . . . 1747 . . . 1009 100 . . Explosive 2120 | . . . . . . . 324 1796 . . Electromagnetic . | . . . . . . . . . . . Impact 496 | . . . . . . . 278 218 . . Slashing . | . . . . . . . . . . . Piercing . | . . . . . . . . . . . Highest Corruption 1 | . . . 1 1 1 1 . . . . Average Corruption 1 | . . . 1 1 1 1 . . . . Corruption Purged . | . . . . . . . . . . . Corruption Blocked . | . . . . . . . . . . . Effects 10 | . . . 4 . 4 2 . . . . Message Errors 3 | . . . 2 . 1 . . . . . Matter Fused 3 | . . . 1 . 1 1 . . . . Heat Flow Errors 2 | . . . . . 1 1 . . . . Energy Discharges 1 | . . . 1 . . . . . . . Data Loss (minor) 1 | . . . . . 1 . . . . . Overload Shots . | . . . . . . . . . . . Overflow Damage 321 | . . . . . . . 128 193 . . Projectiles . | . . . . . . . . . . . Explosions 92 | . . . . . . . . 92 . . Melee 229 | . . . . . . . 128 101 . . Knockbacks 1 | . . . . . . . 1 . . . Impact 1 | . . . . . . . 1 . . . Kinetic . | . . . . . . . . . . . Secondary . | . . . . . . . . . . . Self-Inflicted Damage 473 | . . . 82 . . . 80 311 . . Shots 16 | . . . 1 . . . 3 12 . . Rammed 2 | . . . . . . . 2 . . . Targets Rammed 2 | . . . . . . . 2 . . . Kicked . | . . . . . . . . . . . Crushed . | . . . . . . . . . . . Highest Temperature 198 | . . . 189 . 132 118 198 100 . . Average Temperature 68 | . . . 57 . 68 70 97 32 . . Received Heat Transfer 1155 | . . . 423 . . . 387 339 . 6 Siege Activations . | . . . . . . . . . . . Robots Corrupted . | . . . . . . . . . . . Combat Hostiles . | . . . . . . . . . . . Parts Fried 4 | . . . . . . . 3 1 . . Impact Corruptions 8 | . . . . . . . 5 3 . . Robots Melted 1 | . . . 1 . . . . . . . Combat Hostiles 1 | . . . 1 . . . . . . . Parts Melted 10 | . . . 6 . . . 2 2 . . Heat Transferred 5596 | . . . 3831 . . . 1580 185 . . Parts Sabotaged . | . . . . . . . . . . . Parts Stolen . | . . . . . . . . . . . Parts Stripped . | . . . . . . . . . . . Power Chain Reactions . | . . . . . . . . . . . Missiles Intercepted . | . . . . . . . . . . . Alert | -11 -10 -10 -9 -9 -9 -8 -8 -8 -8 -8 ------- Run | Jun Mat Min Mat Min Exi Min Mat Gar Mat Gar Peak Influence 1377 | . . . 431 168 . . 381 1377 670 671 Initial 670 | . . . . 168 . . . 158 670 240 Average 295 | . . . 203 168 . . 91 818 463 428 Maximum Alert Level 4 | . . . 2 . . . 1 4 2 2 Low Security (%) 50 | 100 100 100 43 100 . 100 75 6 . . Level 1 23 | . . . 51 . . . 24 4 68 47 Level 2 8 | . . . 4 . . . . 16 31 52 Level 3 12 | . . . . . . . . 53 . . Level 4 4 | . . . . . . . . 19 . . Level 5 . | . . . . . . . . . . . High Security . | . . . . . . . . . . . Max Security . | . . . . . . . . . . . Squads Dispatched 6 | . . . 4 . . . 2 . . . Investigation 3 | . . . 1 . . . 2 . . . Extermination . | . . . . . . . . . . . Reinforcement 3 | . . . 3 . . . . . . . Assault . | . . . . . . . . . . . Garrison . | . . . . . . . . . . . Intercept . | . . . . . . . . . . . Searches Triggered . | . . . . . . . . . . . Construction Impeded . | . . . . . . . . . . . Haulers Reinforced . | . . . . . . . . . . . Active Scanning Responses . | . . . . . . . . . . . Cargo Convoy Interrupts . | . . . . . . . . . . . Stealth | -11 -10 -10 -9 -9 -9 -8 -8 -8 -8 -8 --------- Run | Jun Mat Min Mat Min Exi Min Mat Gar Mat Gar Distress Signals 8 | . . . 6 . . . 2 . . . Communications Jammed . | . . . . . . . . . . . Distress Signals . | . . . . . . . . . . . Times Spotted 124 | . 4 . 51 . . . 25 31 1 12 Peak Tracking Total 7 | . 3 . 7 . . . 3 4 1 4 Tactical Retreats 1 | . . . 1 . . . . . . . Traps | -11 -10 -10 -9 -9 -9 -8 -8 -8 -8 -8 ------- Run | Jun Mat Min Mat Min Exi Min Mat Gar Mat Gar Traps Triggered 10 | . . . . . . . 2 5 . 3 Indirectly . | . . . . . . . . . . . Trap Hack Attempts . | . . . . . . . . . . . Triggered . | . . . . . . . . . . . Disarmed . | . . . . . . . . . . . Reprogrammed . | . . . . . . . . . . . Reused . | . . . . . . . . . . . Traps Extracted . | . . . . . . . . . . . Installed . | . . . . . . . . . . . Triggered . | . . . . . . . . . . . Machines | -11 -10 -10 -9 -9 -9 -8 -8 -8 -8 -8 ---------- Run | Jun Mat Min Mat Min Exi Min Mat Gar Mat Gar Machines Disabled 14 | . . . 4 . . . 7 3 . . Max in Single Turn 5 | . . . 4 . . . 5 1 . . Garrison Relay 4 | . . . . . . . . 3 . 1 Phase Generator 1 | . . . . . . . . 1 . . Machines Repaired . | . . . . . . . . . . . Machines Sabotaged . | . . . . . . . . . . . Overloaded Fab Kills . | . . . . . . . . . . . Hacking | -11 -10 -10 -9 -9 -9 -8 -8 -8 -8 -8 --------- Run | Jun Mat Min Mat Min Exi Min Mat Gar Mat Gar Machines Accessed 23 | . 1 . 7 . 2 . 8 2 2 1 Terminals 14 | . 1 . 4 . . . 5 2 1 1 Fabricators . | . . . . . . . . . . . Repair Stations 3 | . . . 2 . . . 1 . . . Recycling Units . | . . . . . . . . . . . Scanalyzers 2 | . . . 1 . . . 1 . . . Garrison Access 2 | . . . . . . . 1 . 1 . Total Hacks 53 | . 2 . 20 . 2 . 20 4 3 2 Successful 27 | . . . 8 . 2 . 13 1 3 . Failed 25 | . 2 . 12 . . . 6 3 . 2 Catastrophic 4 | . . . 2 . . . 1 . . 1 Database Lockouts 1 | . . . . . . . 1 . . . Manual 33 | . 2 . 11 . 1 . 13 2 2 2 Terminals 37 | . 2 . 12 . . . 15 4 2 2 Fabricators . | . . . . . . . . . . . Repair Stations 8 | . . . 6 . . . 2 . . . Recycling Units . | . . . . . . . . . . . Scanalyzers 4 | . . . 2 . . . 2 . . . Garrison Access 2 | . . . . . . . 1 . 1 . Terminal Hacks 11 | . . . . . 2 . 6 1 2 . Record 1 | . . . . . 1 . . . . . Robot Schematic 1 | . . . . . . . 1 . . . Prototype ID Bank 1 | . . . . . . . 1 . . . Open Door 1 | . . . . . . . . 1 . . Scanalyzer Index 1 | . . . . . . . 1 . . . Garrison Index 1 | . . . . . . . 1 . . . Alert Level 1 | . . . . . . . 1 . . . Unreport Threat 3 | . . . . . . . 1 . 2 . EX-Prototype ID Bank 1 | . . . . . 1 . . . . . Fabricator Hacks . | . . . . . . . . . . . Repair Station Hacks 7 | . . . 5 . . . 2 . . . Scan Component 4 | . . . 3 . . . 1 . . . Repair 3 | . . . 2 . . . 1 . . . Recycling Unit Hacks . | . . . . . . . . . . . Scanalyzer 4 | . . . 2 . . . 2 . . . Insert Component 3 | . . . 2 . . . 1 . . . Analyze 1 | . . . . . . . 1 . . . Garrison Access Hacks 2 | . . . . . . . 1 . 1 . Unlock Access 2 | . . . . . . . 1 . 1 . Unauthorized Hacks 3 | . . . 1 . . . 2 . . . Terminals 3 | . . . 1 . . . 2 . . . Botnet 3 | . . . 1 . . . 2 . . . Fabricators . | . . . . . . . . . . . Repair Stations . | . . . . . . . . . . . Recycling Units . | . . . . . . . . . . . Scanalyzers . | . . . . . . . . . . . Garrison Access . | . . . . . . . . . . . Data Cores Recovered . | . . . . . . . . . . . Used . | . . . . . . . . . . . Hacking Detections 18 | . 1 . 7 . . . 6 1 2 1 Full Trace Events 2 | . . . 1 . . . . . . 1 Feedback Events 1 | . . . 1 . . . . . . . Corruption 1 | . . . 1 . . . . . . . Feedback Blocked . | . . . . . . . . . . . Robot Schematics Acquired 1 | . . . . . . . 1 . . . Robots Built . | . . . . . . . . . . . Authchips . | . . . . . . . . . . . Time . | . . . . . . . . . . . Total Robot Build Rating . | . . . . . . . . . . . Part Schematics Acquired 1 | . . . . . . . 1 . . . Parts Built . | . . . . . . . . . . . Authchips . | . . . . . . . . . . . Time . | . . . . . . . . . . . Total Part Build Rating . | . . . . . . . . . . . Parts Repaired 3 | . . . 2 . . . 1 . . . Time 90 | . . . 64 . . . 26 . . . Parts Recycled . | . . . . . . . . . . . Recycled Matter . | . . . . . . . . . . . Retrieved Matter . | . . . . . . . . . . . Retrieved Components . | . . . . . . . . . . . Parts Scanalyzed 1 | . . . . . . . 1 . . . Part Schematics Acquired 1 | . . . . . . . 1 . . . Parts Damaged . | . . . . . . . . . . . Bothacking | -11 -10 -10 -9 -9 -9 -8 -8 -8 -8 -8 ------------ Run | Jun Mat Min Mat Min Exi Min Mat Gar Mat Gar Used RIF Installer 2 | . . . . . . . . 2 . . Signal Jammer 1 | . . . . . . . . 1 . . Robots Hacked 4 | . . . . . . . . 4 . . Non-combat . | . . . . . . . . . . . Combat 4 | . . . . . . . . 4 . . Robot Hacks Applied 4 | . . . . . . . . 4 . . disable_weapons 1 | . . . . . . . . 1 . . overwrite_iff 1 | . . . . . . . . 1 . . formatsys_high 2 | . . . . . . . . 2 . . Relay Couplers Released 17 | . . . . . . . . 12 . 5 Machine Destruction 17 | . . . . . . . . 12 . 5 Attached 3 | . . . . . . . . 2 . 1 Fabnet Peak Effective % . | . . . . . . . . . . . Robots Rewired 14 | . . . . . . . . 14 . . Allies Hacked . | . . . . . . . . . . . Hacks Repelled . | . . . . . . . . . . . Allies | -11 -10 -10 -9 -9 -9 -8 -8 -8 -8 -8 -------- Run | Jun Mat Min Mat Min Exi Min Mat Gar Mat Gar Total Allies 19 | . . . . . . . . 19 . . Largest Group 12 | . . . . . . . . 12 10 10 Highest-Rated Group 223 | . . . . . . . . 223 191 191 Highest-Rated Ally 39 | . . . . . . . . 39 39 39 Total Orders . | . . . . . . . . . . . Ally Attacks 145 | . . . . . . . . 78 8 59 Total Damage 2606 | . . . . . . . . 1207 189 1210 Kills 29 | . . . . . . . . 11 . 18 Allies Corrupted . | . . . . . . . . . . . Allies Melted . | . . . . . . . . . . . Intel | -11 -10 -10 -9 -9 -9 -8 -8 -8 -8 -8 ------- Run | Jun Mat Min Mat Min Exi Min Mat Gar Mat Gar Robot Analysis Total . | . . . . . . . . . . . Derelict Logs Recovered 2 | . . 2 . . . . . . . . Drone Launches . | . . . . . . . . . . . Drone Recoveries . | . . . . . . . . . . . Exploration | -11 -10 -10 -9 -9 -9 -8 -8 -8 -8 -8 ------------- Run | Jun Mat Min Mat Min Exi Min Mat Gar Mat Gar Turns Passed 10180 | 83 226 1025 2290 56 562 454 2526 2227 48 683 Spaces Moved 3483 | 54 117 320 714 29 292 234 744 784 18 177 Core 12 | 12 . . . . . . . . . . Treads 1837 | 42 117 320 322 . . . 57 784 18 177 Legs . | . . . . . . . . . . . Wheels 1634 | . . . 392 29 292 234 687 . . . Hover . | . . . . . . . . . . . Flight . | . . . . . . . . . . . Fastest Speed 50 | 50 160 320 155 190 190 190 190 232 245 325 Average Speed 245 | 135 190 320 255 190 190 190 238 252 253 325 Slowest Speed 560 | 160 320 320 560 190 190 190 465 325 325 325 Overloaded Moves . | . . . . . . . . . . . Propulsion Burnouts . | . . . . . . . . . . . Robots Hopped . | . . . . . . . . . . . Cave-ins Triggered . | . . . . . . . . . . . Exploration Rate (%) 46 | 4 31 70 56 10 70 71 67 86 3 38 Regions Visited 10 Branch Regions 4 Pre-discovered Areas 1 | . . . . . 1 . . . . . Known Exits Taken 3 | . . 1 . . . . 1 . 1 . Unknown Exits Taken 6 | 1 1 . 1 1 1 1 . . . . Scrap Searched 2 | . . 1 . . . 1 . . . . Spaces Dug 26 | . . . 2 . . . 5 19 . . Terrain Destroyed 256 | . . . 41 . . . 81 134 . . Melee 4 | . . . 2 . . . 2 . . . Projectile 10 | . . . 6 . . . 4 . . . AOE 242 | . . . 33 . . . 75 134 . . Terrain Rammed . | . . . . . . . . . . . Walls Destroyed . | . . . . . . . . . . . Machines Disabled . | . . . . . . . . . . . Actions | -11 -10 -10 -9 -9 -9 -8 -8 -8 -8 -8 --------- Run | Jun Mat Min Mat Min Exi Min Mat Gar Mat Gar Total 4797 | 61 122 323 1034 30 304 244 1411 961 19 288 Wait 868 | . 2 . 177 2 . 11 545 33 . 98 Move 3475 | 53 116 319 713 28 291 233 744 783 18 177 Hop . | . . . . . . . . . . . Pick Up 73 | 2 2 4 25 . 4 . 23 10 . 3 Fast Attach 23 | 6 1 . 9 . . . 5 1 . 1 Attach 19 | . . . 3 . . . 8 8 . . Detach . | . . . . . . . . . . . Swap 25 | . . . 13 . . . 9 1 1 1 Drop 53 | . 1 . 15 . 9 . 24 2 . 2 Fire 173 | . . . 77 . . . 41 55 . . Melee 47 | . . . 2 . . . 10 35 . . Ram . | . . . . . . . . . . . Kick . | . . . . . . . . . . . Crush 2 | . . . . . . . 2 . . . Escape Stasis 12 | . . . . . . . . 6 . 6 Rewire 27 | . . . . . . . . 27 . . Trap . | . . . . . . . . . . . Miscellaneous . | . . . . . . . . . . . Route ------- -11/Junkyard -10/Materials (discovered 2 exits: [*Min x2]) -10/Mines (discovered 2 exits: *Mat x2) -9/Materials (discovered 2 exits: *Mat / [*Min]) -9/Mines -9/Exiles -8/Mines -8/Materials (discovered 3 exits: [*Fac] / [*Sto] / Gar) -8/Garrison (discovered 4 exits: [*Fac x3] / *Mat) -8/Materials -8/Garrison (discovered 1 exit: [*Fac]) History --------- Turn | Location | Event 11 | -11/Junkyard | Discovered new exit (range 15) 84 | -11/Junkyard | Entered Materials 89 | -10/Materials | Discovered new exit (range 4) 247 | -10/Materials | Discovered new exit (range 8) 310 | -10/Materials | Entered Mines 318 | -10/Mines | Build established: Mutant 406 | -10/Mines | Identified exit to Materials 1335 | -10/Mines | Entered Materials 1335 | -9/Materials | Evolved 2 slots: Utility x2 1556 | -9/Materials | Repaired Lgt. Treads 2278 | -9/Materials | Core integrity fell below 50% 3074 | -9/Materials | Repaired Ion Cannon 3173 | -9/Materials | Discovered new exit (range 4) 3597 | -9/Materials | Discovered new exit (range 16) 3625 | -9/Materials | Core integrity fell below 20% 3625 | -9/Materials | Entered Mines 3671 | -9/Mines | Deemed a non-threat by the Exiles lab entrance 3673 | -9/Mines | Discovered new exit (range 5) 3681 | -9/Mines | Entered Exiles 3729 | -9/Exiles | Met 8R-AWN 3761 | -9/Exiles | Met EX-HEX 3866 | -9/Exiles | Met EX-DEC 3921 | -9/Exiles | Met EX-BIN 3948 | -9/Exiles | Aligned with FarCom system 3950 | -9/Exiles | Given EX-Vault access code 3995 | -9/Exiles | Opened EX-Vault 4007 | -9/Exiles | Found XL Autogun Array 4046 | -9/Exiles | Warned to stay clear of 0b10 Research branches 4112 | -9/Exiles | Learned location of Zion (-6) 4226 | -9/Exiles | Discovered new exit (range 10) 4243 | -9/Exiles | Left Exiles lab with XL Autogun Array 4243 | -9/Exiles | Entered Mines 4678 | -8/Mines | Discovered new exit (range 11) 4697 | -8/Mines | Entered Materials 4697 | -8/Materials | Evolved 2 slots: Utility x2 5324 | -8/Materials | Build established: Assassin 5730 | -8/Materials | Repaired Lgt. Armor Plating 5802 | -8/Materials | Central database locked down 6048 | -8/Materials | Discovered new exit (range 9) 6073 | -8/Materials | Build established: Skirmisher 6475 | -8/Materials | Build established: Hauler-Mutant 6852 | -8/Materials | Build established: Skirmisher 7190 | -8/Materials | Discovered new exit (range 8) 7223 | -8/Materials | Identified exit to Garrison 7223 | -8/Materials | Entered Garrison 7372 | -8/Garrison | Triggered checkpoint 7460 | -8/Garrison | Triggered checkpoint 7495 | -8/Garrison | Discovered new exit (range 8) 7658 | -8/Garrison | Triggered checkpoint 7664 | -8/Garrison | Triggered checkpoint 7742 | -8/Garrison | Discovered new exit (range 10) 7783 | -8/Garrison | Build established: Hacker-Mutant 7784 | -8/Garrison | Triggered checkpoint 7811 | -8/Garrison | Triggered checkpoint 8001 | -8/Garrison | Garrison Relay disabled 8072 | -8/Garrison | Installed Relay Interface Framework 8136 | -8/Garrison | Phase Generator disabled 8137 | -8/Garrison | Core integrity fell below 50% 8174 | -8/Garrison | Lost 7 parts (1p2n1u3w) 8536 | -8/Garrison | Build established: Commander-Mutant 8616 | -8/Garrison | Triggered checkpoint 8621 | -8/Garrison | Triggered checkpoint 8710 | -8/Garrison | Rescued a captive Derelict 8711 | -8/Garrison | Rescued a captive Derelict 8776 | -8/Garrison | Triggered checkpoint 8802 | -8/Garrison | Garrison Relay disabled 8858 | -8/Garrison | Discovered new exit (range 7) 9042 | -8/Garrison | Triggered checkpoint 9101 | -8/Garrison | Discovered new exit (range 9) 9118 | -8/Garrison | Expanded RIF knowledge: Signal Jamming 9193 | -8/Garrison | Core integrity fell below 20% 9306 | -8/Garrison | Build established: Bothacker-Mutant 9450 | -8/Garrison | Entered Materials 9450 | -8/Materials | Accompanied by 10 allies 9498 | -8/Materials | Identified exit to Garrison 9498 | -8/Materials | Entered Garrison 9498 | -8/Garrison | Accompanied by 10 allies 9556 | -8/Garrison | Triggered checkpoint 9676 | -8/Garrison | Triggered checkpoint 9904 | -8/Garrison | Triggered checkpoint 9984 | -8/Garrison | Triggered checkpoint 10096 | -8/Garrison | Discovered new exit (range 9) 10181 | -8/Garrison | Destroyed by Y-45 Defender with Heavy Assault Rifle Last Messages --------------- 09984_ Beams of light sweep through the air. An alarm sounds. 09984_ S-10 Pest destroyed. 09984_ Destroyed Flight Unit. 09987_ Slug penetrates S-10 Pest. 09987_ S-10 Pest destroyed. 09987_ Slug penetrates S-10 Pest. 09987_ S-10 Pest destroyed. 09989_ Slug penetrates Wall. 09989_ S-10 Pest destroyed. 10009_ Connecting with Garrison Terminal... 10048_ ALERT: Suspicious activity at Terminal G003. Transmitting hostile system tracking data. 10084_ Triggered Stasis Trap. 10084_ A bubble of rippling energy engulfs the area. 10084_ Field strength at 70. 10087_ Field strength at 40. 10088_ Field strength at 10. 10089_ Stasis field depleted. 10096_ EXIT=FOUND 10140_ Commando 3b destroyed. Map ----- +----------------------------------------------------+ | ????????????????????????????????????# % | | ????????????????????????????????????# | | ????????????????????????????????????# | | ????????????????????????????????????### ## ## | | ????????????????????????????########### ## ## | | ????????????????????????????# | | ????????????????????????????# =% | | ????????????????????????????# ####T### %= | | ????????????????????????????# #??###?###### % ## | | ????????????????????????????# #???????????? % #? | | ????????????????????????????# #?????????????####? | | ????????????????????????????# #?????????????????? | | ????????????????????????????# #?????????????????? | | ????????????????????????????# #?????????????????? | | ????????????????????????????# #?????????????????? | | ????????????????????????????# ^#?????????????????? | | ????????????????????????????# #?????????????????? | | ???????????????????########## #?????????????????? | | ???????????????????# #?????????????????? | | ???????????????????# #?????????????????? | | ???????????????????# < ##### ###?????????????????? | | ???????????????????#???????# #???????????????????? | | ???????????????????????????# #???????????????????? | | ???????????????????????????# #???????????????????? | | ?????????????????####*###### #######?????????????? | | ?????????????????# [=!%!@[%* ??????? | | ?????????????????# !%%*!######### #???????????? | | ?????????????????# #==!%??????????Y?????????????? | | ????????????????????# !%?????????????????????????? | | ????????????????????# ?????????????????????????? | | ????????????????????##Y??????????????????????????? | | ?????????????????????##??????????????????????????? | | ?????????????????????????????????????????????????? | | ?????????????????????????????????????????????????? | | ?????????????????????????????????????????????????? | | ?????????????????????????????????????????????????? | | ?????????????????????????????????????????????????? | | ?????????????????????????????????????????????????? | | ?????????????????????????????????????????????????? | | ?????????????????????????????????????????????????? | | ?????????????????????????????????????????????????? | | ?????????????????????????????????????????????????? | | ?????????????????????????????????????????????????? | | ?????????????????????????????????????????????????? | | ?????????????????????????????????????????????????? | | ?????????????????????????????????????????????????? | | ?????????????????????????????????????????????????? | | ?????????????????????????????????????????????????? | | ?????????????????????????????????????????????????? | | ?????????????????????????????????????????????????? | +----------------------------------------------------+ Best States ------------- Heat Dissipation 85 Coolant Potential 50 Energy Generation 16 Energy Capacity 290 Matter Stores 300 Matter Capacity 300 Sight Range 16 Terrain Scan Range 16 Terrain Scan Density 210 Armor Coverage 150 Resistance: KI 20 Evasion (%) 40 Recoil Reduction 2 Offensive Hacking 20 Relay Coupler Types 2 Relay Coupler Value 42 Item Schematics ----------------- Humpback | -8/Materials | Scanalyzed Robot Schematics ------------------ M-28 Smith | -8/Materials | Hacked Fabricated ------------ Nothing Alien Tech Used ----------------- None Achievements -------------- None Challenges ------------ None Game ------ Seed LegStasisDrive Manual? 0 Play Time 00:47:57 Cumulative 431.1 hours Start 2023.04.01 @ 15:33:19 End 2023.04.01 @ 19:57:38 Sessions 2 Manual Loads 0 Difficulty Rogue Special Mode None Game No. 470 Rogue 461 Adventurer 8 Explorer 1 Win Type - Total 7 Types 4/1/2/0/0/0/0/0/0 Lore% 79 Gallery% 90 Achievement% 71 Wizard Run 0 Options --------- ASCII 0 Keyboard 0 Movement Numpad Keybinds 1 Fullscreen 2 Font 18/Terminus Map View 76x50 Tactical HUD 1 Map Filters NONE Filters NONE Steam 1 RUN: 69f56f17-b789-4af6-977a-439fb1db5b65